bitfinex/quotes_BTCUSD_20260125
["timestamp","ask_amount","ask_price","bid_price","bid_amount"]
[1769351668928,0.00034499,88716.0,88693.0,0.17328]
[1769351669085,0.00034499,88716.0,88695.0,0.01127459]
[1769351669299,0.00034499,88716.0,88699.0,1.12677674]
[1769351669489,0.00034499,88716.0,88700.0,1.12677674]
[1769351669687,0.00034499,88716.0,88700.0,1.51828605]
[1769351669886,0.00034499,88716.0,88696.0,1.12677674]
[1769351670129,0.00034499,88716.0,88698.0,1.12677674]
[1769351670329,0.00034499,88716.0,88700.0,1.51828605]
[1769351671000,0.00049829,88716.0,88700.0,1.51828605]
[1769351673784,0.00049829,88716.0,88702.0,0.36944948]
[1769351673969,0.00049829,88716.0,88705.0,1.12357402]
[1769351674283,0.00049829,88716.0,88707.0,1.12357402]
[1769351676629,0.00049829,88716.0,88698.0,0.01127421]
[1769351676630,0.00049829,88716.0,88700.0,0.01127395]
[1769351676757,0.00049829,88716.0,88703.0,1.12357402]
[1769351676962,0.00049829,88716.0,88700.0,0.01127395]
[1769351677169,0.00049829,88716.0,88702.0,1.12357402]
[1769351677391,0.00049829,88716.0,88704.0,1.4930235]
[1769351678595,0.00049829,88716.0,88705.0,0.17324]
[1769351680375,0.89265043,88715.0,88697.0,0.36944948]
[1769351680588,0.3693691,88712.0,88698.0,0.17324]
[1769351680779,1.26201953,88711.0,88698.0,0.17324]
[1769351681260,1.26238953,88711.0,88698.0,0.17324]
[1769351683128,0.3697391,88711.0,88698.0,0.17324]
[1769351683708,0.00037,88711.0,88698.0,0.17324]
[1769351684339,0.00037,88711.0,88697.0,1.12357402]
[1769351684545,0.00037,88711.0,88698.0,0.17324]
[1769351684748,0.00037,88711.0,88698.0,0.18023078]
[1769351686566,0.00037,88711.0,88698.0,0.17324]
[1769351687704,0.00037,88711.0,88699.0,0.00811715]
[1769351689881,0.3693691,88708.0,88698.0,0.17324]
[1769351690098,0.3695651,88708.0,88698.0,0.17324]
[1769351690500,1.13535741,88707.0,88679.0,0.28133681]
[1769351690833,0.000196,88708.0,88681.0,0.01127637]
[1769351690834,0.3693691,88702.0,88681.0,0.01127637]
[1769351691033,1.12850506,88701.0,88683.0,0.01127611]
[1769351691248,1.12850506,88701.0,88684.0,1.14409718]
[1769351691454,1.12850506,88701.0,88684.0,1.12357402]
[1769351691815,1.12850506,88701.0,88684.0,1.13485001]
[1769351692227,0.000196,88701.0,88687.0,0.0112756]
[1769351692489,0.000196,88701.0,88688.0,0.00586336]
[1769351692861,0.000196,88701.0,88691.0,0.0112751]
[1769351693061,0.000196,88701.0,88692.0,0.01127497]
[1769351693309,0.000196,88701.0,88695.0,1.12357402]
[1769351693484,0.000196,88701.0,88693.0,0.01127484]
[1769351693811,0.000196,88701.0,88697.0,0.36944948]
[1769351694012,0.000196,88701.0,88698.0,1.51350939]
[1769351694215,0.000196,88701.0,88698.0,1.12357402]
[1769351694373,0.000196,88701.0,88699.0,0.36944948]
[1769351695014,0.000196,88701.0,88700.0,1.12327002]
[1769351695214,0.000196,88701.0,88700.0,1.4927195]
[1769351695355,0.000196,88701.0,88689.0,0.01127535]
[1769351695356,0.000196,88701.0,88695.0,1.4930235]
[1769351697350,0.000196,88701.0,88694.0,0.18451471]
[1769351697573,0.000196,88701.0,88696.0,0.36944948]
[1769351697788,0.000196,88701.0,88697.0,1.12357402]
[1769351698021,0.000196,88701.0,88698.0,0.01127421]
[1769351698171,0.000174,88711.0,88701.0,0.000196]
[1769351698371,0.000174,88711.0,88702.0,1.12357402]
[1769351701885,0.000174,88711.0,88698.0,0.36944948]
[1769351702084,0.000174,88711.0,88699.0,1.12357402]
[1769351702487,0.000174,88711.0,88700.0,0.01127395]
[1769351702807,0.000174,88711.0,88700.0,1.4930235]
[1769351703385,0.000174,88711.0,88700.0,1.50429745]
[1769351703580,0.000174,88711.0,88700.0,1.4930235]
[1769351705502,0.000174,88711.0,88699.0,0.01127408]
[1769351705849,0.000174,88711.0,88700.0,1.41622606]
[1769351706202,0.000174,88711.0,88700.0,1.40495211]
[1769351708976,0.1381354,88717.0,88700.0,1.40495211]
[1769351709212,0.1381354,88717.0,88700.0,1.05736762]
[1769351709392,0.000174,88722.0,88703.0,0.34771278]
[1769351709600,0.000174,88722.0,88705.0,0.34771278]
[1769351709955,1.09725278,88722.0,88705.0,0.34771278]
[1769351711203,1.09707878,88721.0,88705.0,0.34771278]
[1769351711458,0.000174,88722.0,88700.0,0.00012829]
[1769351711459,0.37689416,88720.0,88700.0,0.00012829]
[1769351711674,0.37689416,88719.0,88700.0,0.00012829]
[1769351711873,1.09707878,88718.0,88700.0,0.00012829]
[1769351712486,1.09707878,88718.0,88700.0,0.34784107]
[1769351713068,1.09707878,88718.0,88701.0,0.34771278]
[1769351713270,0.000174,88722.0,88704.0,0.34771278]
[1769351713470,0.000174,88722.0,88701.0,0.01127383]
[1769351713471,0.000174,88722.0,88705.0,1.05723933]
[1769351713677,0.000174,88722.0,88706.0,1.40495211]
[1769351715168,0.3788922,88731.0,88706.0,1.40495211]
[1769351715376,0.91038008,88728.0,88706.0,1.40495211]
[1769351715585,0.91038008,88726.0,88706.0,1.40495211]
[1769351715805,0.91038008,88724.0,88706.0,1.40495211]
[1769351716604,0.91038008,88724.0,88706.0,1.05723933]
[1769351716803,0.91038008,88724.0,88707.0,0.36577281]
[1769351718407,0.3788922,88724.0,88707.0,0.36577281]
[1769351718607,0.91038008,88723.0,88707.0,0.36577281]
[1769351719580,0.0005176,88744.0,88708.0,1.18750413]
[1769351719721,0.3788922,88743.0,88715.0,0.36577281]
[1769351719901,0.91038008,88740.0,88718.0,1.16495825]
[1769351720106,0.3788922,88739.0,88719.0,0.36577281]
[1769351720303,0.91038008,88737.0,88719.0,0.36577281]
[1769351720501,0.3788922,88737.0,88719.0,0.36577281]
[1769351720744,0.91038008,88736.0,88719.0,0.36577281]
[1769351721942,0.69710852,88736.0,88719.0,0.36577281]
[1769351722721,0.3788922,88743.0,88722.0,1.16495825]
[1769351722946,0.50650972,88743.0,88725.0,0.36577281]
[1769351723074,0.50650972,88742.0,88725.0,0.36577281]
[1769351723884,0.88540192,88742.0,88725.0,0.36577281]
[1769351724119,0.3788922,88742.0,88725.0,0.36577281]
[1769351724327,0.50650972,88741.0,88725.0,0.36577281]
[1769351727488,0.50650972,88741.0,88726.0,0.36577281]
[1769351728318,0.3788922,88742.0,88726.0,1.53073106]
[1769351729067,0.0005176,88744.0,88726.0,1.53073106]
[1769351729352,0.0005176,88744.0,88727.0,0.36577281]
[1769351729515,0.0005176,88744.0,88728.0,1.16495825]
[1769351729714,0.0005176,88744.0,88729.0,0.36577281]
[1769351730637,0.50716951,88744.0,88729.0,0.36577281]
[1769351730831,0.37955199,88744.0,88724.0,0.53897281]
[1769351731031,0.88606171,88744.0,88724.0,0.53897281]
[1769351731233,0.88606171,88744.0,88725.0,0.36577281]
[1769351731615,0.88606171,88744.0,88725.0,1.53073106]
[1769351732017,0.88606171,88744.0,88726.0,1.16495825]
[1769351732219,0.88606171,88744.0,88727.0,0.36577281]
[1769351733042,0.88606171,88744.0,88727.0,1.44231101]
[1769351733235,0.88606171,88744.0,88728.0,0.35235141]
[1769351733967,0.00065979,88744.0,88730.0,0.35235141]
[1769351734218,0.00065979,88744.0,88732.0,0.35235141]
[1769351736184,0.00065979,88744.0,88731.0,1.0765382]
[1769351736398,0.34262356,88749.0,88731.0,1.0765382]
[1769351736606,0.0001944,88755.0,88731.0,1.07668039]
[1769351736800,0.37969887,88751.0,88731.0,1.07668039]
[1769351736977,0.35807772,88748.0,88731.0,1.07668039]
[1769351737569,0.35807772,88748.0,88732.0,0.35235141]
[1769351737801,0.35807772,88748.0,88732.0,1.42888961]
[1769351738783,0.37969887,88749.0,88732.0,0.35235141]
[1769351738984,0.35807772,88754.0,88734.0,1.0765382]
[1769351739214,0.35807772,88753.0,88735.0,0.35235141]
[1769351739366,0.73777659,88753.0,88735.0,0.35235141]
[1769351739806,0.37969887,88753.0,88735.0,0.35235141]
[1769351740015,0.35807772,88752.0,88735.0,0.35235141]
[1769351741022,0.37969887,88750.0,88731.0,0.00014219]
[1769351741250,0.35807772,88747.0,88731.0,0.00014219]
[1769351741401,0.73777659,88747.0,88731.0,0.00014219]
[1769351741821,0.37969887,88747.0,88731.0,0.00014219]
[1769351742016,0.73777659,88747.0,88731.0,0.00014219]
[1769351742422,0.35807772,88746.0,88731.0,0.00014219]
[1769351743659,0.35807772,88752.0,88732.0,1.0765382]
[1769351743960,0.73777659,88752.0,88732.0,1.42888961]
[1769351744310,0.73777659,88752.0,88732.0,1.0765382]
[1769351744508,0.73777659,88752.0,88733.0,0.35235141]
[1769351746026,0.73777659,88752.0,88733.0,1.42888961]
[1769351746798,0.35807772,88751.0,88733.0,1.42888961]
[1769351748425,0.35807772,88751.0,88733.0,0.35235141]
[1769351748989,0.0001944,88755.0,88734.0,1.0765382]
[1769351749192,0.3356192,88754.0,88736.0,0.35235141]
[1769351749360,0.37969887,88752.0,88736.0,0.35235141]
[1769351749564,0.3356192,88751.0,88736.0,0.35235141]
[1769351749865,0.37969887,88751.0,88731.0,1.4290318]
[1769351750100,0.3356192,88750.0,88731.0,1.4290318]
[1769351750820,0.3356192,88750.0,88731.0,1.07668039]
[1769351750991,0.3356192,88750.0,88732.0,0.35235141]
[1769351752505,0.3356192,88750.0,88732.0,1.42888961]
[1769351753096,0.3356192,88750.0,88732.0,0.35235141]
[1769351753296,0.3356192,88750.0,88733.0,1.07766485]
[1769351753522,0.3356192,88750.0,88733.0,1.0765382]
[1769351756373,0.3356192,88750.0,88733.0,1.42888961]
[1769351757784,0.0001944,88755.0,88731.0,0.00014219]
[1769351758129,0.0001944,88755.0,88734.0,1.0765382]
[1769351758338,0.0001944,88755.0,88735.0,0.35235141]
[1769351758556,0.0001944,88755.0,88736.0,1.0765382]
[1769351758782,0.0001944,88755.0,88737.0,0.35235141]
[1769351758983,0.0001944,88755.0,88739.0,1.42888961]
[1769351760462,0.0001944,88755.0,88731.0,0.0114122]
[1769351760463,0.0001944,88755.0,88740.0,1.0765382]
[1769351760669,0.0001944,88755.0,88741.0,1.42888961]
[1769351760884,0.0001944,88755.0,88733.0,0.05634877]
[1769351760885,0.0001944,88755.0,88727.0,0.35235141]
[1769351761094,0.0001944,88755.0,88726.0,0.32156]
[1769351761274,0.01126709,88754.0,88726.0,0.32156]
[1769351761497,0.01126785,88748.0,88726.0,0.1484]
[1769351761651,0.01126811,88746.0,88726.0,0.1484]
[1769351761851,0.37969887,88744.0,88726.0,0.1484]
[1769351762059,0.37969887,88742.0,88726.0,0.1484]
[1769351762290,0.71531807,88741.0,88726.0,0.1484]
[1769351762695,0.37969887,88741.0,88726.0,1.2249382]
[1769351763442,0.3356192,88745.0,88726.0,1.2249382]
[1769351764670,0.3356192,88745.0,88726.0,1.0765382]
[1769351765302,0.3356192,88743.0,88726.0,1.0765382]
[1769351766495,0.3356192,88742.0,88720.0,1.16119276]
[1769351766726,0.33547843,88738.0,88716.0,0.36030564]
[1769351766944,0.67769029,88737.0,88717.0,0.02254359]
[1769351767771,0.34221186,88737.0,88721.0,1.5214984]
[1769351768534,0.34221186,88742.0,88721.0,1.5214984]
[1769351768733,0.67769029,88742.0,88721.0,1.5214984]
[1769351770808,0.34221186,88742.0,88721.0,1.5214984]
[1769351771009,0.33547843,88739.0,88721.0,0.36030564]
[1769351773247,0.33547843,88739.0,88722.0,1.16119276]
[1769351774825,0.33547843,88739.0,88722.0,1.51109754]
[1769351775234,0.33547843,88739.0,88723.0,0.36050395]
[1769351776551,0.0001944,88755.0,88723.0,0.36050395]
[1769351776747,0.00066835,88755.0,88726.0,1.1451911]
[1769351776962,0.34597161,88754.0,88728.0,0.36050395]
[1769351777286,0.00066835,88755.0,88732.0,0.36050395]
[1769351777626,0.33576382,88753.0,88732.0,0.36050395]
[1769351777828,0.33576382,88751.0,88732.0,0.36050395]
[1769351778135,0.68207883,88751.0,88732.0,0.36050395]
[1769351779089,0.0003434,88751.0,88732.0,0.36050395]
[1769351779286,0.68173543,88750.0,88732.0,0.36050395]
[1769351779827,0.34597161,88749.0,88732.0,0.36050395]
[1769351779976,0.34631501,88749.0,88732.0,0.36050395]
[1769351780795,0.68207883,88749.0,88732.0,0.36050395]
[1769351781416,0.34597161,88748.0,88732.0,0.36050395]
[1769351781610,0.34597161,88746.0,88722.0,0.36050395]
[1769351781829,0.34597161,88744.0,88723.0,0.36050395]
[1769351782012,0.68173543,88743.0,88723.0,1.50569505]
[1769351782209,0.68173543,88743.0,88724.0,0.36050395]
[1769351782997,0.68193023,88743.0,88724.0,0.36050395]
[1769351785623,0.33595862,88743.0,88724.0,0.36050395]
[1769351785843,0.34597161,88742.0,88724.0,0.36050395]
[1769351786001,0.34616641,88742.0,88724.0,0.36050395]
[1769351786362,0.34616641,88742.0,88724.0,1.50569505]
[1769351786978,0.33576382,88741.0,88713.0,0.1484]
[1769351787178,0.34616641,88742.0,88713.0,0.1484]
[1769351787179,0.33576382,88739.0,88721.0,0.17316]
[1769351787365,0.34597161,88738.0,88721.0,0.17316]
[1769351788319,0.34616641,88738.0,88719.0,1.50569505]
[1769351788505,0.68173543,88736.0,88719.0,1.50569505]
[1769351788817,0.33576382,88732.0,88708.0,1.50569505]
[1769351788942,0.36481746,88729.0,88709.0,0.37067473]
[1769351789294,0.36481746,88729.0,88710.0,0.36050395]
[1769351789939,0.36481746,88727.0,88707.0,0.0001024]
[1769351790141,0.33576382,88724.0,88707.0,0.0001024]
[1769351790341,0.36481746,88725.0,88708.0,0.36050395]
[1769351790545,0.36481746,88725.0,88709.0,1.50569505]
[1769351790771,0.36481746,88725.0,88710.0,0.36050395]
[1769351792045,0.18302346,88725.0,88710.0,0.36050395]
[1769351793814,0.33576382,88730.0,88710.0,0.36050395]
[1769351794013,0.52060522,88730.0,88710.0,1.52707654]
[1769351794493,0.1848414,88729.0,88710.0,1.52707654]
[1769351794640,0.53074484,88729.0,88710.0,1.52707654]
[1769351796085,0.53074484,88729.0,88711.0,1.52169959]
[1769351796243,0.53074484,88729.0,88711.0,1.52182788]
[1769351799163,0.53074484,88729.0,88711.0,0.00012829]
[1769351799365,0.53074484,88729.0,88713.0,0.355127]
[1769351802403,0.53074484,88729.0,88712.0,1.16657259]
[1769351802404,0.1848414,88737.0,88715.0,0.355127]
[1769351802590,0.0001948,88738.0,88717.0,0.36639879]
[1769351802786,0.0001948,88738.0,88715.0,0.01127205]
[1769351802787,0.0001948,88738.0,88722.0,0.355127]
[1769351802995,0.0001948,88738.0,88725.0,1.16657259]
[1769351803210,0.0001948,88738.0,88728.0,0.355127]
[1769351803417,0.0001948,88738.0,88728.0,1.52114323]
[1769351817818,0.0001948,88738.0,88728.0,0.355127]
[1769351820882,0.0001948,88738.0,88729.0,1.16657259]
[1769351821979,0.0001948,88738.0,88726.0,1.52169959]
[1769351822191,0.0001948,88738.0,88727.0,0.355127]
[1769351822392,0.0001948,88738.0,88727.0,1.16657259]
[1769351822590,0.0001948,88738.0,88727.0,0.01127052]
[1769351822795,0.0001948,88738.0,88728.0,0.355127]
[1769351823839,0.0001948,88738.0,88729.0,1.13336415]
[1769351824165,0.0001948,88738.0,88730.0,0.34859732]
[1769351831763,0.0001486,88747.0,88724.0,0.1732]
[1769351831764,0.0001486,88747.0,88732.0,1.13336415]
[1769351831963,0.0001486,88747.0,88733.0,1.48196147]
[1769351837100,0.0001486,88747.0,88727.0,1.16107212]
[1769351837309,0.1980635,88748.0,88728.0,0.32538977]
[1769351838524,0.35136296,88748.0,88728.0,0.32538977]
[1769351838736,0.1980635,88747.0,88728.0,0.32538977]
[1769351841024,0.1980635,88747.0,88728.0,1.16107212]
[1769351841225,0.1980635,88747.0,88729.0,0.32538977]
[1769351843943,0.1980635,88747.0,88729.0,1.16107212]
[1769351844093,0.1980635,88747.0,88730.0,0.32538977]
[1769351850316,0.35136296,88744.0,88727.0,0.00699]
[1769351850471,0.35136296,88740.0,88727.0,0.00699]
[1769351850640,0.35136296,88739.0,88727.0,0.00699]
[1769351850849,0.1980635,88738.0,88727.0,0.00699]
[1769351851059,0.06760293,88754.0,88727.0,0.00699]
[1769351851060,0.16806309,88736.0,88727.0,0.00699]
[1769351851267,0.16099587,88732.0,88710.0,0.32538977]
[1769351851468,0.16099587,88730.0,88710.0,0.32538977]
[1769351853645,0.16084876,88728.0,88707.0,0.0001486]
[1769351853940,0.16084876,88724.0,88707.0,0.0001486]
[1769351854143,0.16084876,88722.0,88707.0,0.0001486]
[1769351854305,0.33607519,88719.0,88707.0,0.0001486]
[1769351854508,0.49657255,88717.0,88707.0,0.0001486]
[1769351854780,0.16057464,88715.0,88707.0,0.0001486]
[1769351854977,0.33607519,88714.0,88707.0,0.0001486]
[1769351855186,0.16057464,88712.0,88707.0,0.0001486]
[1769351855394,0.33607519,88709.0,88707.0,0.0001486]
[1769351855631,0.26284211,88709.0,88707.0,0.0001486]
[1769351855841,0.00160575,88709.0,88707.0,0.0001486]
[1769351856701,0.33754988,88708.0,88707.0,1.622e-05]
[1769351860979,0.33607519,88713.0,88707.0,1.622e-05]
[1769351861270,0.00147469,88712.0,88707.0,1.622e-05]
[1769351861496,0.00147469,88711.0,88707.0,1.622e-05]
[1769351861708,0.00147469,88710.0,88707.0,1.622e-05]
[1769351862113,0.33607519,88710.0,88707.0,1.622e-05]
[1769351862258,0.00147469,88709.0,88707.0,1.622e-05]
[1769351863072,0.33615525,88715.0,88707.0,3e-08]
[1769351863296,8.006e-05,88715.0,88707.0,3e-08]
[1769351865016,0.00147469,88714.0,88707.0,3e-08]
[1769351872522,8.006e-05,88715.0,88707.0,3e-08]
[1769351883250,8.006e-05,88715.0,88708.0,1.12161411]
[1769351883467,0.04667395,88732.0,88712.0,1.12161411]
[1769351883652,0.04667395,88732.0,88715.0,0.32864865]
[1769351883999,0.04667395,88732.0,88707.0,3e-08]
[1769351884000,0.04512,88732.0,88717.0,0.32864865]
[1769351884133,0.04512,88732.0,88720.0,1.12161411]
[1769351884334,0.04526857,88732.0,88724.0,1.12161411]
[1769351884532,0.04526857,88732.0,88727.0,0.27221303]
[1769351884807,0.04526857,88732.0,88729.0,0.30548865]
[1769351885333,0.00014857,88732.0,88729.0,0.30548865]
[1769351885668,0.11705977,88745.0,88729.0,0.30548865]
[1769351885669,0.11782089,88745.0,88729.0,0.30548865]
[1769351887269,0.11626694,88745.0,88729.0,0.30548865]
[1769351887449,0.00155395,88744.0,88729.0,0.30548865]
[1769351888387,0.35439697,88744.0,88724.0,0.32864865]
[1769351888594,0.00155395,88743.0,88724.0,0.32864865]
[1769351890484,0.05398246,88742.0,88724.0,0.32864865]
[1769351890851,0.05398246,88742.0,88725.0,0.32864865]
[1769351891051,0.00155395,88743.0,88725.0,0.32864865]
[1769351892896,0.00155395,88742.0,88725.0,0.32864865]
[1769351894060,0.00155395,88742.0,88725.0,1.12161411]
[1769351894262,0.00155395,88742.0,88726.0,0.32864865]
[1769351895997,0.33474866,88749.0,88728.0,0.33114536]
[1769351896215,0.33630261,88746.0,88728.0,0.33114536]
[1769351896348,0.00155395,88745.0,88728.0,0.33114536]
[1769351897430,0.00155395,88745.0,88722.0,0.0001225]
[1769351897431,0.00155395,88741.0,88722.0,0.0001225]
[1769351897684,0.00155395,88741.0,88722.0,0.33126786]
[1769351897685,0.01126874,88741.0,88722.0,0.33126786]
[1769351897882,0.00155395,88740.0,88722.0,0.33126786]
[1769351898185,0.00155395,88739.0,88722.0,0.33126786]
[1769351899543,0.01282295,88739.0,88722.0,0.33126786]
[1769351900349,0.33474866,88740.0,88722.0,0.33126786]
[1769351900519,0.33474866,88740.0,88723.0,1.09475498]
[1769351901638,0.33474866,88740.0,88722.0,0.33126786]
[1769351901840,0.33474866,88733.0,88722.0,0.0001225]
[1769351902038,0.00155395,88732.0,88722.0,0.0001225]
[1769351906865,0.00143267,88725.0,88722.0,0.0001225]
[1769351907113,0.01127001,88731.0,88722.0,0.0001225]
[1769351907114,0.33590383,88723.0,88722.0,3.5e-05]
[1769351907798,0.33590383,88723.0,88712.0,0.0001599]
[1769351907799,0.00115795,88722.0,88712.0,0.0001599]
[1769351908006,0.00115795,88721.0,88712.0,0.0001599]
[1769351910744,0.01127141,88720.0,88712.0,0.0001599]
[1769351910923,0.33474866,88718.0,88712.0,0.0001599]
[1769351911131,0.33574831,88716.0,88712.0,0.0001599]
[1769351912212,0.00099965,88716.0,88712.0,0.0001599]
[1769351912426,0.00112785,88720.0,88712.0,0.0001599]
[1769351913913,0.04824035,88720.0,88712.0,0.0001599]
[1769351916068,0.00112785,88720.0,88712.0,0.0001599]
[1769351917745,0.0001282,88720.0,88712.0,0.0001599]
[1769351934147,0.0001282,88720.0,88705.0,0.3289001]
[1769351934148,0.0001282,88720.0,88705.0,0.32817957]
[1769351934892,0.01139961,88720.0,88705.0,0.32817957]
[1769351935098,0.00099965,88718.0,88705.0,0.32817957]
[1769351935510,0.01127217,88714.0,88703.0,0.0001599]
[1769351935708,0.01127217,88714.0,88703.0,0.0002234]
[1769351935709,0.00099965,88714.0,88703.0,0.0002234]
[1769351938874,0.00099965,88714.0,88703.0,5.85e-06]
[1769351941878,0.32651669,88716.0,88703.0,5.85e-06]
[1769351943895,0.01127166,88718.0,88703.0,5.85e-06]
[1769351944093,0.01861962,88716.0,88703.0,5.85e-06]
[1769351944545,0.02989154,88716.0,88703.0,5.85e-06]
[1769351944851,0.01861962,88716.0,88703.0,5.85e-06]
[1769351945157,0.02989154,88716.0,88703.0,5.85e-06]
[1769351945377,0.05357191,88715.0,88703.0,5.85e-06]
[1769351945578,0.38848504,88720.0,88703.0,5.85e-06]
[1769351945872,0.01127179,88717.0,88703.0,5.85e-06]
[1769351947383,0.01127166,88718.0,88703.0,5.85e-06]
[1769351947831,0.01127179,88717.0,88703.0,5.85e-06]
[1769351948269,0.01127166,88718.0,88703.0,5.85e-06]
[1769351948952,0.01127179,88717.0,88703.0,5.85e-06]
[1769351949731,0.01327166,88718.0,88703.0,5.85e-06]
[1769351949931,0.01127179,88717.0,88703.0,5.85e-06]
[1769351950449,0.01327166,88718.0,88703.0,5.85e-06]
[1769351950652,0.01127179,88717.0,88703.0,5.85e-06]
[1769351950886,0.01127166,88718.0,88701.0,0.17087098]
[1769351951014,0.01127154,88719.0,88701.0,0.17087098]
[1769351951201,0.22220349,88720.0,88701.0,0.17087098]
[1769351951405,0.06956231,88719.0,88701.0,0.17087098]
[1769351951803,0.05829077,88719.0,88701.0,0.17087098]
[1769351952007,0.06956231,88719.0,88701.0,0.17087098]
[1769351952245,0.06029077,88719.0,88701.0,0.17087098]
[1769351952815,0.002,88719.0,88701.0,0.17087098]
[1769351953011,0.01327154,88719.0,88701.0,0.17087098]
[1769351953151,0.002,88719.0,88701.0,0.17087098]
[1769351953594,0.2334749,88720.0,88701.0,0.17087098]
[1769351954093,0.01327154,88719.0,88701.0,0.17087098]
[1769351954493,0.01127166,88718.0,88701.0,0.17087098]
[1769351954812,0.01127154,88719.0,88701.0,0.17087098]
[1769351955176,0.01127166,88718.0,88701.0,0.17087098]
[1769351955583,0.01327154,88719.0,88701.0,0.17087098]
[1769351955907,0.07852545,88719.0,88701.0,1.12210619]
[1769351956088,0.01327154,88719.0,88702.0,0.21490069]
[1769351956692,0.01127154,88719.0,88702.0,0.21490069]
[1769351956900,0.01127166,88718.0,88702.0,0.21490069]
[1769351957101,0.01127154,88719.0,88702.0,0.21490069]
[1769351957719,0.01127166,88718.0,88702.0,0.21426144]
[1769351957915,0.002,88719.0,88702.0,0.21426144]
[1769351958084,0.34988166,88719.0,88701.0,0.77072067]
[1769351958286,0.32765853,88718.0,88701.0,0.77072067]
[1769351959461,0.32765853,88718.0,88701.0,0.61361283]
[1769351959645,0.32765853,88718.0,88701.0,0.50070851]
[1769351959803,0.32765853,88718.0,88701.0,0.44425635]
[1769351960009,0.32765853,88718.0,88701.0,0.33135203]
[1769351960209,0.32765853,88718.0,88701.0,0.27489987]
[1769351960450,0.32765853,88718.0,88701.0,0.16199555]
[1769351960978,0.32765853,88718.0,88699.0,1.12210619]
[1769351961341,0.32765853,88717.0,88699.0,1.12210619]
[1769351962748,0.32765853,88716.0,88699.0,1.12210619]
[1769351972330,0.32765853,88716.0,88688.0,0.06782031]
[1769351972331,0.32765853,88716.0,88696.0,1.12210619]
[1769351972618,0.32765853,88716.0,88697.0,0.31119862]
[1769351972984,0.0001679,88724.0,88699.0,0.31140637]
[1769351973185,0.00023733,88724.0,88703.0,0.31140637]
[1769351973331,0.00023733,88724.0,88707.0,0.27867948]
[1769351973532,0.00023733,88724.0,88708.0,1.0127905]
[1769351973735,0.00023733,88724.0,88708.0,0.9231766]
[1769351975999,0.3644789,88737.0,88711.0,0.28484767]
[1769351976181,0.3644789,88737.0,88714.0,1.09295896]
[1769351976393,0.3644789,88737.0,88718.0,1.09295896]
[1769351976557,0.3644789,88737.0,88719.0,1.09295896]
[1769351976969,0.3644789,88737.0,88719.0,0.97946568]
[1769351977172,0.0002064,88734.0,88719.0,0.97946568]
[1769351978254,0.0002064,88734.0,88719.0,1.09295896]
[1769351980022,0.3646853,88734.0,88719.0,1.09295896]
[1769351980234,1.1327261,88733.0,88711.0,6.943e-05]
[1769351980434,1.1327261,88728.0,88711.0,6.943e-05]
[1769351980672,0.3644789,88726.0,88711.0,6.943e-05]
[1769351983122,0.20208763,88726.0,88711.0,6.943e-05]
[1769351991860,0.20208763,88726.0,88711.0,1.09302839]
[1769351994334,0.20208763,88726.0,88711.0,6.943e-05]
[1769352001285,1.33481373,88726.0,88711.0,6.943e-05]
[1769352001970,0.20208763,88726.0,88711.0,6.943e-05]
[1769352002389,1.1327261,88724.0,88711.0,6.943e-05]
[1769352002570,1.1327261,88724.0,88699.0,1.09295896]
[1769352002571,1.1327261,88717.0,88699.0,1.09295896]
[1769352002767,0.36456434,88717.0,88699.0,1.09295896]
[1769352002968,8.544e-05,88717.0,88702.0,0.3641116]
[1769352003175,8.544e-05,88717.0,88703.0,0.3641116]
[1769352003391,8.544e-05,88717.0,88704.0,1.16021602]
[1769352005424,8.544e-05,88717.0,88703.0,0.3641116]
[1769352005626,8.544e-05,88717.0,88699.0,1.16021602]
[1769352006331,8.544e-05,88717.0,88701.0,0.3641116]
[1769352006544,8.544e-05,88717.0,88702.0,1.52432762]
[1769352007315,8.544e-05,88717.0,88703.0,1.16021602]
[1769352008955,0.01127192,88716.0,88694.0,0.001]
[1769352009167,1.05528361,88713.0,88694.0,0.001]
[1769352009462,0.01127243,88712.0,88694.0,0.001]
[1769352009679,1.05528361,88711.0,88694.0,0.001]
[1769352010909,1.05528361,88709.0,88694.0,0.001]
[1769352011113,0.0112723,88713.0,88694.0,0.001]
[1769352011114,1.05528361,88708.0,88694.0,0.001]
[1769352011315,0.34233561,88707.0,88694.0,0.001]
[1769352013126,0.34233561,88707.0,88694.0,0.00041473]
[1769352013356,0.34233561,88707.0,88694.0,2.41e-05]
[1769352016630,0.34233561,88707.0,88688.0,1.50581159]
[1769352017380,0.35781968,88706.0,88688.0,1.50581159]
[1769352018352,0.35781968,88706.0,88690.0,0.36522249]
[1769352018559,0.35781968,88706.0,88691.0,1.16055124]
[1769352031492,1.42056541,88706.0,88682.0,0.17324]
[1769352031693,1.42056541,88706.0,88685.0,1.16055124]
[1769352031996,1.42056541,88706.0,88687.0,1.16055124]
[1769352032196,1.42056541,88706.0,88688.0,1.16055124]
[1769352032394,1.42056541,88706.0,88688.0,0.36522249]
[1769352032636,1.42056541,88706.0,88689.0,1.16055124]
[1769352032792,1.42056541,88706.0,88689.0,1.52577373]
[1769352033417,0.35781968,88706.0,88690.0,1.16611192]
[1769352033612,1.06274573,88714.0,88692.0,1.16611192]
[1769352033613,0.35993327,88713.0,88692.0,1.16611192]
[1769352033887,0.35993327,88713.0,88693.0,1.16611192]
[1769352034069,0.35993327,88712.0,88693.0,1.16611192]
[1769352035019,0.35993327,88712.0,88693.0,1.16595253]
[1769352035219,0.35993327,88712.0,88695.0,1.16611192]
[1769352035462,0.35993327,88712.0,88697.0,1.14295192]
[1769352035679,0.35993327,88712.0,88697.0,1.14288678]
[1769352035902,1.06290353,88716.0,88688.0,0.01127548]
[1769352035903,1.06290353,88716.0,88698.0,0.33901217]
[1769352036060,0.17328544,88717.0,88701.0,1.16611192]
[1769352036265,0.17328544,88717.0,88701.0,1.08534035]
[1769352037053,0.17328544,88717.0,88703.0,0.33901217]
[1769352037269,0.17328544,88717.0,88704.0,1.16611192]
[1769352038973,0.17328544,88717.0,88705.0,1.50512409]
[1769352039176,0.17328544,88717.0,88705.0,1.50452447]
[1769352040209,8.544e-05,88717.0,88705.0,0.33841255]
[1769352040370,0.0002348,88719.0,88708.0,1.16611192]
[1769352040577,0.0002348,88719.0,88710.0,1.2787785]
[1769352040783,0.0002348,88719.0,88710.0,1.10943909]
[1769352041000,0.0002348,88719.0,88710.0,1.05299266]
[1769352041176,0.0002348,88719.0,88710.0,0.9400998]
[1769352044269,0.0002348,88719.0,88710.0,0.33901217]
[1769352045328,0.0002348,88719.0,88708.0,0.0001282]
[1769352046241,1.13505845,88725.0,88708.0,0.0001282]
[1769352046242,0.93909482,88725.0,88708.0,0.0001282]
[1769352046564,0.0001486,88728.0,88708.0,0.0001282]
[1769352046565,1.49499172,88724.0,88708.0,0.0001282]
[1769352047140,0.0001486,88728.0,88708.0,0.0001282]
[1769352047564,0.35993327,88726.0,88708.0,0.0001282]
[1769352047763,1.49499172,88725.0,88708.0,0.0001282]
[1769352050051,1.13505845,88724.0,88708.0,0.0001282]
[1769352051915,1.49499172,88724.0,88708.0,0.0001282]
[1769352053108,1.49499172,88724.0,88708.0,1.16624012]